bitfinex-derivatives/quotes_ETHF0:USTF0_20260113
["timestamp","ask_amount","ask_price","bid_price","bid_amount"]
[1768329256192,1.52955192,3195.3,3193.9,0.15662]
[1768329256581,1.52955192,3195.4,3193.9,0.15662]
[1768329257185,1.52955192,3195.4,3193.9,0.15988832]
[1768329257896,1.52955192,3195.0,3193.9,0.00326832]
[1768329258101,0.00282831,3195.0,3193.9,0.00326832]
[1768329258999,0.00282831,3195.0,3193.9,0.14438323]
[1768329260497,0.00282831,3195.0,3194.0,0.14111491]
[1768329261394,0.00282831,3195.0,3194.1,0.15661]
[1768329262598,0.00282831,3195.0,3193.9,0.00326832]
[1768329268493,1.52955192,3194.7,3193.2,0.14111491]
[1768329268891,0.00282831,3195.0,3193.4,0.14111491]
[1768329269090,0.00469417,3194.3,3193.5,0.14111491]
[1768329269491,0.00469417,3194.3,3193.5,0.14513489]
[1768329270700,0.00469417,3194.3,3193.5,0.30177489]
[1768329271800,0.00469417,3194.3,3193.7,0.29774491]
[1768329273103,0.00469417,3194.3,3193.5,0.00401998]
[1768329273397,1.53424609,3194.3,3193.5,0.00401998]
[1768329274403,0.00469417,3194.3,3193.5,0.00401998]
[1768329278100,0.00469417,3194.3,3193.5,0.14434916]
[1768329278609,0.00282831,3195.0,3193.5,0.14434916]
[1768329279709,0.00282831,3195.0,3193.6,0.29695918]
[1768329284108,0.40218717,3194.9,3193.6,0.29695918]
[1768329284309,0.00282831,3195.0,3193.6,0.29695918]
[1768329284506,0.40218717,3194.9,3193.6,0.29695918]
[1768329284705,0.00282831,3195.0,3193.6,0.29695918]
[1768329284910,0.40218722,3194.9,3193.6,0.29695918]
[1768329285112,0.00282831,3195.0,3193.6,0.29695918]
[1768329285311,0.40236446,3194.9,3193.6,0.29695918]
[1768329285509,0.00282831,3195.0,3193.6,0.29695918]
[1768329285710,0.4023644,3194.9,3193.6,0.29695918]
[1768329285908,0.00282831,3195.0,3193.6,0.29695918]
[1768329286111,0.4023644,3194.9,3193.6,0.29695918]
[1768329286414,0.00282831,3195.0,3193.6,0.29695918]
[1768329286713,0.40253267,3194.9,3193.6,0.29695918]
[1768329287012,0.00282831,3195.0,3193.6,0.29695918]
[1768329287213,0.40253367,3194.9,3193.9,0.00469417]
[1768329287517,1.04685567,3194.6,3193.9,0.00469417]
[1768329288108,0.00282831,3195.0,3193.9,0.00469417]
[1768329288308,1.04685567,3194.6,3193.9,0.00469417]
[1768329288806,1.04685567,3194.6,3193.6,0.29695918]
[1768329289015,1.04685567,3194.0,3193.2,0.14032918]
[1768329289208,1.04685567,3194.3,3193.2,0.14032918]
[1768329289910,1.04685567,3194.3,3193.2,0.14327506]
[1768329290905,1.04685567,3194.3,3193.2,0.29993506]
[1768329295718,1.04685567,3193.7,3192.8,0.14032918]
[1768329295919,1.04685567,3193.8,3192.8,0.14032918]
[1768329296513,1.04685567,3193.8,3192.8,0.29700918]
[1768329296715,1.04685567,3193.8,3192.8,0.30006354]
[1768329297313,1.04685567,3194.3,3193.1,0.14032918]
[1768329297510,2.46585567,3194.5,3193.2,0.14032918]
[1768329297713,0.40292438,3194.4,3193.2,0.14032918]
[1768329297920,0.40292438,3194.3,3193.2,0.14032918]
[1768329298119,2.46585567,3194.5,3193.2,0.14032918]
[1768329298321,0.40294671,3194.4,3193.2,0.14032918]
[1768329298520,0.40294671,3194.3,3193.2,0.14032918]
[1768329298715,2.46585567,3194.5,3193.2,0.14032918]
[1768329298916,0.40294654,3194.4,3193.2,0.14032918]
[1768329299119,0.40294654,3194.3,3193.2,0.14032918]
[1768329299418,2.46585567,3194.5,3193.2,0.14032918]
[1768329299612,0.40292785,3194.4,3193.3,0.14032918]
[1768329299819,2.46585567,3194.5,3193.3,0.14032918]
[1768329299820,0.40292785,3194.3,3193.3,0.14032918]
[1768329300021,2.46585567,3194.5,3193.3,0.14032918]
[1768329300222,0.40292507,3194.4,3193.3,0.14032918]
[1768329300424,0.40292507,3194.3,3193.3,0.14032918]
[1768329300616,2.46585567,3194.5,3193.3,0.14032918]
[1768329300816,0.40292518,3194.4,3193.3,0.14032918]
[1768329301016,2.46585567,3194.5,3193.3,0.14032918]
[1768329301224,0.4029238,3194.4,3193.3,0.14032918]
[1768329301424,2.46585567,3194.5,3193.3,0.14032918]
[1768329301621,2.46585567,3194.5,3193.3,0.29697918]
[1768329301622,0.40291872,3194.4,3193.3,0.29697918]
[1768329301826,2.46585567,3194.5,3192.8,0.00305436]
[1768329301827,0.00469417,3194.6,3193.9,0.14032918]
[1768329302020,0.00469417,3194.6,3194.0,0.14032918]
[1768329302322,0.00469417,3194.6,3193.9,0.15662]
[1768329303033,0.00282831,3195.0,3194.0,0.14032918]
[1768329304224,0.00282831,3195.0,3194.3,0.14032918]
[1768329304618,1.418,3195.4,3194.4,0.14032918]
[1768329305423,0.00469417,3195.2,3194.4,0.14032918]
[1768329305618,0.00737718,3195.2,3194.5,0.13739458]
[1768329306418,1.04685567,3194.8,3193.8,0.15663]
[1768329306620,1.04685567,3194.5,3193.8,0.15663]
[1768329307222,1.04685567,3194.8,3193.8,0.15663]
[1768329307524,0.00737718,3195.2,3193.9,0.13739458]
[1768329308320,0.00737718,3195.2,3193.9,0.29401458]
[1768329308523,0.00737718,3195.2,3194.0,0.13739458]
[1768329309434,2.26819596,3195.1,3193.2,0.15665]
[1768329309621,0.40213831,3195.0,3193.2,0.15665]
[1768329309926,1.86606759,3195.1,3193.2,0.29404458]
[1768329310125,0.40214636,3195.0,3193.2,0.29404458]
[1768329310324,1.86606759,3195.1,3193.3,0.13739458]
[1768329310527,0.40212502,3195.0,3193.3,0.13739458]
[1768329310731,1.86606759,3195.1,3193.3,0.13739458]
[1768329310929,0.40215121,3195.0,3193.3,0.13739458]
[1768329311124,1.86606759,3195.1,3193.3,0.13739458]
[1768329311324,0.40212497,3195.0,3193.3,0.13739458]
[1768329311525,1.86606759,3195.1,3193.3,0.13739458]
[1768329311826,0.40215095,3195.0,3193.3,0.13739458]
[1768329312029,1.86606759,3195.1,3193.3,0.13739458]
[1768329312221,0.40215853,3195.0,3193.3,0.13739458]
[1768329312421,1.86606759,3195.1,3193.3,0.13739458]
[1768329312622,0.40215782,3195.0,3193.3,0.13739458]
[1768329312926,1.73475542,3195.1,3193.4,0.13739458]
[1768329313126,0.00737718,3195.2,3193.7,0.13739458]
[1768329313326,0.00737718,3195.2,3193.7,0.29402458]
[1768329313627,0.00737718,3195.2,3193.8,0.13739458]
[1768329314230,0.00737718,3195.2,3193.9,0.29401458]
[1768329314439,0.00737718,3195.2,3194.0,0.13739458]
[1768329315033,0.00737718,3195.2,3193.9,0.15662]
[1768329315334,2.27014182,3195.1,3193.3,0.15665]
[1768329315632,0.40208291,3195.0,3193.3,0.15665]
[1768329316930,0.40208291,3195.0,3193.3,0.29085535]
[1768329318435,0.40208291,3195.0,3193.4,0.13420535]
[1768329321835,0.53634071,3195.0,3193.4,0.13420535]
[1768329322036,0.40208291,3194.9,3193.3,0.15665]
[1768329324144,0.40208291,3194.9,3193.4,0.13420535]
[1768329325052,0.40208291,3194.9,3193.5,0.13420535]
[1768329325335,0.16393718,3195.2,3193.5,0.29084535]
[1768329325637,0.40217161,3195.1,3193.7,0.13420535]
[1768329325838,1.425,3195.0,3193.7,0.13420535]
[1768329326945,1.425,3195.0,3193.9,0.13420535]
[1768329330935,1.425,3195.0,3194.0,0.13420535]
[1768329332036,1.425,3195.0,3194.1,0.13420535]
[1768329333543,1.425,3195.0,3194.2,0.13420535]
[1768329338641,0.00737718,3195.2,3194.5,0.13448971]
[1768329345456,0.00737718,3195.2,3194.5,0.29107971]
[1768329346150,0.00737718,3195.2,3194.6,0.29107971]
[1768329347566,0.00737718,3195.2,3194.1,0.29109971]
[1768329347746,1.53735767,3195.2,3194.1,0.29109971]
[1768329348650,0.00737718,3195.2,3194.1,0.13448971]
[1768329348847,0.00737718,3195.2,3194.5,0.15659]
[1768329349048,0.00737718,3195.2,3194.6,0.13448971]
[1768329350253,0.00737718,3195.2,3194.6,0.29107971]
[1768329350455,1.04606592,3195.4,3194.6,0.29107971]
[1768329351359,2.95592183,3196.0,3194.6,0.29107971]
[1768329351560,0.40217258,3195.9,3194.6,0.29107971]
[1768329351763,0.00469417,3195.6,3194.6,0.29107971]
[1768329358067,0.00469417,3195.6,3194.7,0.13448971]
[1768329360762,0.00262777,3196.0,3195.2,0.13448971]
[1768329360964,0.00262777,3196.0,3195.2,0.13779816]
[1768329362359,0.00262777,3196.0,3195.4,0.13448971]
[1768329362673,1.424,3196.5,3195.6,0.13448971]
[1768329363275,1.424,3196.5,3195.8,0.13448971]
[1768329363571,0.00297638,3196.5,3195.8,0.13448971]
[1768329364461,4.557,3197.1,3195.9,0.13448971]
[1768329365466,4.56017218,3197.1,3195.9,0.13448971]
[1768329366977,4.56017218,3197.1,3196.1,0.14554532]
[1768329367477,0.00317218,3197.1,3196.1,0.14554532]
[1768329367977,0.00317218,3197.1,3196.1,0.30205532]
[1768329368179,0.00317218,3197.1,3196.1,0.14554532]
[1768329368478,0.00317218,3197.1,3196.3,0.14554532]
[1768329368778,1.431,3197.6,3196.4,0.14554532]
[1768329369281,0.00469417,3197.3,3196.4,0.14554532]
[1768329369468,0.00469417,3197.3,3196.7,0.00469417]
[1768329369868,0.00832377,3197.3,3196.7,0.00469417]
[1768329373280,1.0449434,3197.2,3196.7,0.00469417]
[1768329376484,1.0449434,3196.8,3196.4,0.1565]
[1768329376788,1.0449434,3196.9,3196.4,0.1565]
[1768329378584,1.0449434,3197.1,3196.4,0.1565]
[1768329378777,1.05326717,3197.3,3196.4,0.29155523]
[1768329379685,0.00832377,3197.3,3196.5,0.29154523]
[1768329379879,1.0449434,3198.1,3197.0,0.13505523]
[1768329380078,1.0449434,3197.7,3197.0,0.13505523]
[1768329380880,1.04754802,3197.7,3197.0,0.13505523]
[1768329383586,1.04754802,3197.7,3196.9,0.15647]
[1768329384081,0.00260462,3197.7,3196.9,0.15647]
[1768329384281,1.0449434,3197.6,3196.9,0.15647]
[1768329385288,0.00260462,3197.7,3197.0,0.13505523]
[1768329386379,0.00260462,3197.7,3197.0,0.29152523]
[1768329387282,5.6079434,3198.2,3197.1,0.13505523]
[1768329387483,5.6079434,3198.2,3197.4,0.15645]
[1768329388186,5.61026392,3198.2,3197.4,0.15645]
[1768329388387,4.56532052,3198.2,3197.4,0.15645]
[1768329388578,5.61026392,3198.2,3197.4,0.15645]
[1768329389587,0.00232052,3198.2,3197.4,0.29150523]
[1768329389986,0.00232052,3198.2,3197.5,0.13505523]
[1768329390183,0.00232052,3198.2,3197.5,0.13839244]
[1768329390493,0.00232052,3198.2,3197.5,0.00333721]
[1768329390494,1.0449434,3198.0,3197.5,0.00333721]
[1768329390687,1.0449434,3197.6,3196.7,0.29153523]
[1768329391489,1.0449434,3197.8,3196.8,0.15648]
[1768329391690,1.0449434,3197.8,3196.8,0.15900571]
[1768329394296,1.0449434,3197.4,3196.8,0.15900571]
[1768329394492,1.0449434,3197.2,3196.3,0.00469417]
[1768329395588,1.0449434,3197.2,3196.8,0.15648]
[1768329395781,1.0449434,3197.4,3196.8,0.13742449]
[1768329396384,1.0449434,3197.7,3196.3,0.14665665]
[1768329396590,1.0449434,3197.7,3196.5,1.1843672]
[1768329397188,0.00232052,3198.2,3196.8,0.2959038]
[1768329397388,1.0449434,3197.9,3196.8,0.2959038]
[1768329397689,0.00232052,3198.2,3197.1,1.1843672]
[1768329397990,0.00232052,3198.2,3196.3,0.00723285]
[1768329397991,0.00232052,3198.2,3197.4,0.1394238]
[1768329398383,0.00232052,3198.2,3196.6,2.78059846]
[1768329398583,1.0449434,3197.9,3196.9,0.15647]
[1768329398788,1.0449434,3198.1,3197.0,0.15647]
[1768329399091,1.0449434,3198.1,3197.0,0.2958938]
[1768329399298,0.00232052,3198.2,3197.3,0.15646]
[1768329399496,1.04726392,3198.2,3197.3,0.15646]
[1768329401089,1.0449434,3198.0,3197.3,0.15646]
[1768329402798,0.00232052,3198.2,3197.3,0.15646]
[1768329402996,1.0449434,3198.0,3197.3,0.15646]
[1768329405302,1.0449434,3197.8,3196.8,0.1394238]
[1768329406094,1.0449434,3197.2,3196.7,0.15648]
[1768329407302,1.04483817,3197.7,3196.7,0.15648]
[1768329409202,1.04483817,3198.0,3196.7,0.15648]
[1768329409402,0.00232052,3198.2,3196.8,0.2959038]
[1768329409699,0.00232052,3198.2,3196.9,0.2958938]
[1768329410004,0.00232052,3198.2,3197.0,0.15647]
[1768329411500,0.00232052,3198.2,3197.3,0.1394238]
[1768329411807,0.00232052,3198.2,3197.3,0.2958738]
[1768329413202,0.00232052,3198.2,3197.4,0.2958738]
[1768329413511,0.00232052,3198.2,3197.5,0.2958638]
[1768329416214,0.00232052,3198.2,3197.5,0.15644]
[1768329417607,0.00232052,3198.2,3197.6,0.2958638]
[1768329418609,1.433,3199.0,3197.6,0.2958638]
[1768329419215,1.433,3199.0,3198.0,0.00469417]
[1768329419604,1.43576754,3199.0,3198.0,0.00469417]
[1768329422518,1.71890318,3200.4,3198.7,0.1394238]
[1768329422815,1.71890318,3200.4,3198.6,0.15639]
[1768329422816,0.12359318,3200.3,3198.6,0.15639]
[1768329423211,1.439,3200.4,3198.7,0.1394238]
[1768329423512,0.00310179,3200.4,3198.8,0.1394238]
[1768329424220,0.12805212,3200.4,3198.7,0.00316422]
[1768329424612,0.12495033,3200.3,3198.7,0.00316422]
[1768329427813,0.13331862,3200.1,3198.7,0.00316422]
[1768329428012,0.13331862,3200.1,3198.0,0.16111417]
[1768329428325,0.13331862,3200.1,3198.0,0.3038514]
[1768329428513,0.1301544,3199.9,3198.0,0.3038514]
[1768329428719,0.2864944,3199.8,3198.0,0.00469417]
[1768329428922,0.1301544,3199.7,3198.0,0.00848278]
[1768329429115,0.15634,3199.8,3198.0,0.00848278]
[1768329429116,1.5691544,3199.6,3198.0,0.00848278]
[1768329429317,3.129,3199.5,3198.0,0.00848278]
[1768329431521,1.04391692,3199.1,3198.0,0.00848278]
[1768329434226,1.04391692,3199.1,3198.0,0.15122001]
[1768329434621,1.04391692,3199.4,3198.0,0.15122001]
[1768329434919,1.438,3199.3,3198.0,0.15122001]
[1768329435620,1.438,3199.3,3198.0,0.30764001]
[1768329435922,1.438,3199.3,3198.1,0.14273723]
[1768329438227,0.15634,3199.8,3198.1,0.14273723]
[1768329438434,1.04391692,3199.5,3198.2,0.14541576]
[1768329439126,1.04391692,3199.2,3198.2,0.14541576]
[1768329439331,1.04391692,3199.0,3198.1,0.15642]
[1768329440735,1.04391692,3199.0,3198.0,0.00848278]
[1768329440915,1.04391692,3198.2,3196.8,0.30189576]
[1768329441121,1.04391692,3197.8,3196.8,0.30189576]
[1768329441415,0.12306155,3198.6,3196.8,0.30189576]
[1768329441621,1.437,3198.2,3196.9,0.14541576]
[1768329442023,1.4397549,3198.2,3196.9,0.1484241]
[1768329442420,1.4397549,3198.2,3197.0,0.14541576]
[1768329442921,1.4397549,3198.2,3197.2,0.15010993]
[1768329443132,1.59335,3199.5,3197.6,0.14541576]
[1768329444019,1.72189685,3199.5,3197.6,0.14541576]
[1768329444521,0.12600652,3199.4,3197.6,0.14541576]
[1768329444821,1.59589033,3199.5,3197.6,0.14541576]
[1768329446127,1.59589033,3199.5,3197.7,0.14541576]
[1768329446327,0.12769592,3199.4,3197.2,0.00469417]
[1768329446514,0.12769592,3199.1,3197.2,0.00469417]
[1768329448628,0.00469417,3198.5,3197.2,0.00469417]
[1768329449026,0.00469417,3198.5,3197.2,0.15010993]
[1768329450126,0.00469417,3198.5,3197.4,0.14541576]
[1768329458134,0.00469417,3198.5,3197.5,0.14657817]
[1768329459535,0.00469417,3198.5,3197.7,0.14657817]
[1768329459739,3.28534,3199.8,3198.1,0.14657817]
[1768329459941,4.72634,3199.8,3198.1,0.14657817]
[1768329465342,1.04391758,3199.1,3198.1,0.14657817]
[1768329466638,1.04391758,3199.1,3198.0,0.15642]
[1768329469345,1.04390027,3198.8,3198.0,0.15642]
[1768329470141,1.04390027,3199.0,3198.1,0.14657817]
[1768329471446,1.04390027,3198.8,3198.1,0.14657817]
[1768329475451,4.72634,3199.8,3198.1,0.14657817]
[1768329475646,1.04390027,3199.1,3198.1,0.14657817]
[1768329475846,1.04859444,3199.1,3198.1,0.14657817]
[1768329477748,1.04390027,3198.9,3198.1,0.14657817]
[1768329481156,1.04390027,3198.9,3198.0,0.15642]
[1768329481455,1.04390027,3198.7,3198.0,0.15642]
[1768329483459,1.04390027,3198.5,3198.0,0.15642]
[1768329483657,1.04390027,3198.5,3197.7,0.14657817]
[1768329486369,1.04390027,3198.3,3197.5,0.15644]
[1768329487566,0.00469417,3199.1,3197.5,0.29697842]
[1768329487767,1.04390027,3198.6,3197.6,0.14053842]
[1768329489258,1.04390027,3198.4,3197.2,2.92583105]
[1768329489457,1.04390027,3197.8,3197.2,0.00469417]
[1768329489660,1.04390027,3197.6,3197.2,0.00469417]
[1768329491063,1.04390027,3197.8,3197.2,0.00469417]
[1768329493570,1.04390027,3197.4,3196.9,0.00300834]
[1768329496174,0.11799005,3198.2,3196.9,0.00300834]
[1768329496476,1.04390027,3197.9,3196.9,0.00300834]
[1768329496666,1.04390027,3198.1,3196.9,1.18713643]
[1768329497174,1.04390027,3198.1,3197.0,0.14022782]
[1768329497373,1.04390027,3198.3,3197.2,1.18412809]
[1768329497568,1.04390027,3198.4,3197.3,0.14022782]
[1768329497872,1.04390027,3198.2,3197.3,0.14022782]
[1768329498175,1.04390027,3198.2,3197.5,0.00469417]
[1768329498374,0.00469417,3198.1,3197.5,0.00469417]
[1768329498880,0.00469417,3198.1,3197.5,0.14492199]
[1768329499378,1.04390027,3198.7,3197.5,0.14492199]
[1768329499669,1.04390027,3198.5,3197.5,0.14492199]
[1768329502172,1.04390027,3197.9,3197.5,0.00469417]
[1768329502776,1.04390027,3198.1,3197.5,0.00469417]
[1768329503376,1.52745072,3198.7,3197.5,0.00469417]
[1768329504179,1.64561791,3198.7,3197.5,0.00469417]
[1768329504379,1.52745072,3198.5,3196.9,0.00300834]
[1768329504584,1.52745072,3198.5,3197.0,0.15647]
[1768329508083,1.52745072,3198.5,3197.4,0.00469417]
[1768329509076,0.11463897,3198.4,3197.0,0.15647]
[1768329509285,0.11463897,3198.4,3196.9,0.00300834]
[1768329509286,1.52745072,3198.1,3196.9,0.00300834]
[1768329509776,1.63739552,3198.1,3196.9,0.00300834]
[1768329513686,0.00469417,3198.3,3196.9,0.00300834]
[1768329513890,1.43869417,3198.3,3196.9,0.14323616]
[1768329514978,2.96614489,3198.3,3196.9,0.14323616]
[1768329515286,2.96614489,3198.3,3196.9,0.00300834]
[1768329515787,3.07696173,3198.3,3196.9,0.00300834]
[1768329515989,1.52745072,3197.9,3196.9,0.00300834]
[1768329516188,1.52745072,3197.9,3196.5,0.13888562]
[1768329517284,1.52745072,3197.9,3196.5,0.14222956]
[1768329518596,1.52745072,3197.9,3196.5,0.00334394]
[1768329520095,1.52745072,3197.5,3196.5,0.00334394]
[1768329520397,1.52745072,3197.5,3196.3,0.1565]
[1768329521396,1.52745072,3197.5,3196.3,0.1596555]
[1768329521600,0.10864491,3197.8,3196.3,0.1596555]
[1768329521902,3.0667877,3198.1,3196.5,0.29537562]
[1768329522199,3.0667877,3198.1,3196.5,0.15649]
[1768329523095,2.96145072,3198.1,3196.6,0.13888562]
[1768329524505,1.52745072,3197.7,3196.5,0.15649]
[1768329525007,2.96145072,3198.1,3196.5,0.15649]
[1768329525200,2.96145072,3198.1,3196.6,0.13888562]
[1768329525399,1.04464923,3197.9,3196.7,1.20112923]
[1768329525608,1.04464923,3197.9,3196.7,1.34001485]
[1768329527503,1.04464923,3197.7,3196.3,0.1596555]
[1768329527705,0.15720581,3196.7,3196.3,0.1596555]
[1768329527901,0.00397618,3196.7,3196.3,0.0031555]
[1768329531415,0.00397618,3196.7,3196.3,0.14204112]
[1768329531622,0.51245206,3198.0,3196.3,0.14204112]
[1768329532519,0.51518956,3198.0,3196.3,0.14204112]
[1768329533719,0.0027375,3198.0,3196.5,0.29537562]
[1768329533927,0.0027375,3198.0,3196.7,0.13888562]
[1768329534129,0.0027375,3198.0,3197.0,0.13888562]
[1768329535126,0.0027375,3198.0,3196.9,0.15647]
[1768329539223,0.0027375,3198.0,3196.6,0.13888562]
[1768329543224,0.26476215,3197.9,3196.3,0.0031555]
[1768329543433,0.15643,3197.9,3196.3,0.14204112]
[1768329543830,0.0027375,3198.0,3196.3,0.29854112]
[1768329544130,0.0027375,3198.0,3196.4,0.13888562]
[1768329544732,0.0027375,3198.0,3196.6,0.13888562]
[1768329545736,0.0027375,3198.0,3196.5,0.15649]
[1768329545927,0.11093776,3198.0,3196.5,0.15649]
[1768329546224,0.0027375,3198.0,3196.5,0.29785236]
[1768329546419,0.0027375,3198.0,3196.6,0.14136236]
[1768329549339,1.04499708,3197.5,3196.6,0.14136236]
[1768329551839,1.04499708,3197.7,3196.6,0.14136236]
[1768329557544,1.04499708,3196.7,3195.7,2.62755456]
[1768329557746,1.04499708,3196.0,3195.4,0.15654]
[1768329557948,1.04499708,3196.3,3195.4,0.29479882]
[1768329558143,1.462,3196.6,3195.5,0.13825882]
[1768329558645,1.462,3196.6,3195.5,0.14217128]
[1768329563045,1.462,3196.6,3195.7,0.00469417]
[1768329563249,1.462,3196.6,3195.7,0.14295299]
[1768329563651,6.61043,3197.9,3195.7,0.29948299]
[1768329563852,4.593,3197.8,3195.7,0.14295299]
[1768329564651,4.593,3197.8,3195.9,0.13825882]
[1768329565054,4.70539681,3197.8,3195.9,0.13825882]
[1768329566156,4.593,3197.8,3195.9,0.13825882]
[1768329568257,4.593,3197.8,3196.2,0.13825882]
[1768329571853,4.593,3197.8,3196.4,0.13825882]
[1768329581061,0.00469417,3197.4,3196.4,0.29475882]
[1768329581248,0.00469417,3197.4,3196.5,0.3029236]
[1768329581453,0.00469417,3197.4,3196.6,0.1464336]
[1768329582858,3.13,3198.6,3197.1,0.1464336]
[1768329583058,1.0445839,3198.3,3197.1,0.1464336]
[1768329583762,1.0445839,3198.3,3197.0,0.15647]
[1768329584150,1.474,3198.4,3197.1,0.1464336]
[1768329584460,1.474,3198.4,3197.2,0.1464336]
[1768329589366,1.474,3198.4,3197.2,0.3028936]
[1768329589569,1.474,3198.4,3197.3,0.1464336]
[1768329590270,1.474,3198.4,3197.5,0.15112777]
[1768329590461,1.47769392,3198.4,3197.5,0.15112777]
[1768329594367,1.04408855,3198.3,3197.5,0.00469417]
[1768329596081,1.04408855,3197.8,3196.7,1.19052215]
[1768329596268,1.04408855,3197.8,3196.7,0.1464336]
[1768329596773,1.04408855,3197.8,3196.8,1.04408855]
[1768329597280,1.58525212,3198.4,3196.7,0.1464336]
[1768329597472,1.58525212,3198.4,3197.0,0.00469417]
[1768329597771,1.52757656,3198.2,3197.0,0.00469417]
[1768329599271,1.64170165,3198.2,3197.0,0.00469417]
[1768329600579,0.11387026,3198.1,3196.6,0.15649]
[1768329600783,0.00469417,3197.9,3196.6,0.15649]
[1768329601266,0.00469417,3197.9,3196.7,1.20053855]
[1768329601878,0.00469417,3197.9,3196.7,1.34697215]
[1768329602481,0.00469417,3197.9,3196.8,0.1464336]
[1768329603379,0.00469417,3197.9,3196.6,0.15649]
[1768329603568,0.00469417,3197.9,3196.7,1.20053855]
[1768329603772,1.53227073,3197.9,3196.7,1.20053855]
[1768329603979,1.53227073,3197.9,3196.6,0.15649]
[1768329604180,1.53227073,3197.9,3196.1,0.1464336]
[1768329604379,1.53227073,3197.9,3196.2,1.20053855]
[1768329604975,0.00469417,3197.9,3196.3,0.28970901]
[1768329605177,1.471,3197.8,3196.5,0.13320901]
[1768329605377,1.471,3197.8,3196.6,0.13320901]
[1768329611378,1.471,3197.8,3196.9,1.20053855]
[1768329611574,0.00469417,3197.9,3197.0,0.13320901]
[1768329612277,0.00469417,3197.9,3196.9,1.20053855]
[1768329613083,0.00469417,3197.9,3196.4,0.13320901]
[1768329613286,0.00469417,3197.9,3196.8,1.20053855]
[1768329616088,0.00469417,3197.9,3196.8,1.33877368]
[1768329617298,1.04921005,3197.9,3196.8,1.33877368]
[1768329617486,1.04921005,3197.9,3196.9,1.18275101]
[1768329617691,1.04921005,3197.9,3196.9,0.13823513]
[1768329620989,1.04451588,3197.7,3196.9,0.13823513]
[1768329621297,1.04451588,3197.7,3196.8,1.20053855]
[1768329623898,0.00469417,3197.9,3196.8,1.20053855]
[1768329624090,1.04451588,3197.7,3196.7,0.15648]
[1768329624492,1.04921005,3197.9,3196.8,0.13823513]
[1768329625786,1.04451588,3197.7,3196.8,0.13823513]
[1768329625993,1.04451588,3197.5,3196.8,0.13823513]
[1768329626992,1.04451588,3197.6,3196.8,0.13823513]
[1768329627498,1.04451588,3197.6,3196.7,0.15648]
[1768329628903,1.468,3197.7,3197.1,1.04451588]
[1768329629088,1.468,3197.7,3197.0,0.13823513]
[1768329629289,0.00469417,3197.9,3197.0,0.13823513]
[1768329629601,0.00469417,3197.9,3197.3,1.18275101]
[1768329630102,0.00469417,3197.9,3197.4,0.13823513]
[1768329630293,1.468,3198.3,3197.4,0.13823513]
[1768329632203,1.467,3198.3,3197.4,0.13823513]
[1768329632904,0.00369392,3198.4,3197.7,1.18275101]
[1768329633100,0.00369392,3198.4,3197.7,0.13823513]
[1768329637408,1.467,3198.8,3197.9,0.13458746]
[1768329638505,1.47083805,3198.8,3197.9,0.13692243]
[1768329642710,1.04451588,3198.7,3197.9,0.13692243]
[1768329643414,1.47083805,3198.8,3197.9,0.00233497]
[1768329643616,1.04451588,3198.3,3197.9,0.00233497]
[1768329643916,1.04451588,3198.5,3197.9,0.00233497]
[1768329648411,1.04451588,3198.5,3198.3,1.20053855]
[1768329648718,1.04451588,3198.5,3197.9,0.00233497]
[1768329650825,1.04451588,3198.7,3197.9,0.00233497]
[1768329651027,2.50851588,3198.7,3197.9,0.00233497]
[1768329655328,1.464,3198.7,3197.9,0.00233497]
[1768329661037,2.5079845,3198.7,3197.9,0.00233497]
[1768329661441,2.5079845,3198.7,3197.7,0.15643]
[1768329662446,2.5079845,3198.7,3197.7,0.1586695]
[1768329663930,0.13947698,3198.3,3197.3,0.00469417]
[1768329664133,1.18346148,3198.4,3197.3,0.00469417]
[1768329664338,0.13947698,3198.3,3197.3,0.00469417]
[1768329664842,1.0439845,3198.4,3197.3,0.00469417]
[1768329665040,1.0439845,3198.4,3197.3,0.00693612]
[1768329665240,1.60347698,3198.7,3197.3,0.16338612]
[1768329665440,1.04782255,3198.8,3197.5,0.15644]
[1768329665441,1.46583805,3198.8,3197.5,0.15644]
[1768329665734,1.0439845,3198.7,3197.5,0.15644]
[1768329666042,1.18027689,3198.4,3197.5,0.15644]
[1768329666349,1.0439845,3198.6,3197.5,0.15644]
[1768329670038,0.00383805,3198.8,3197.3,0.14204877]
[1768329670228,0.00383805,3198.8,3198.0,0.13511265]
[1768329670433,0.00383805,3198.8,3198.3,0.15641]
[1768329671144,1.461,3199.4,3198.3,0.15641]
[1768329671737,1.0439845,3199.0,3198.3,0.15641]
[1768329671935,1.0439845,3199.0,3197.7,0.15643]
[1768329672135,1.04732459,3199.0,3197.7,0.15643]
[1768329672340,0.00334009,3199.0,3197.8,0.15643]
[1768329672541,0.00334009,3199.0,3197.9,0.15643]
[1768329673634,0.00334009,3199.0,3198.3,0.15641]
[1768329673838,1.461,3199.4,3198.3,0.15641]
[1768329674945,1.46351061,3199.4,3198.3,0.15641]
[1768329677349,0.00251061,3199.4,3198.4,0.1564]
[1768329680050,1.18919433,3198.5,3197.4,0.15645]
[1768329680246,1.0439845,3198.2,3197.4,0.15645]
[1768329680656,1.0439845,3198.4,3197.4,0.15645]
[1768329681653,1.0439845,3198.1,3196.7,0.2975695]
[1768329682044,1.0439845,3198.1,3196.7,0.15648]
[1768329682247,1.0439845,3197.8,3196.7,0.15648]
[1768329682651,1.0439845,3197.2,3196.1,0.15651]
[1768329682851,1.0439845,3197.2,3196.1,0.15996442]
[1768329683053,1.0439845,3197.5,3196.1,0.15996442]
[1768329683358,0.39317367,3197.7,3196.1,0.15996442]
[1768329683550,0.14520983,3197.6,3196.1,0.15996442]
[1768329691469,0.14520983,3197.6,3196.1,0.00345442]
[1768329692062,0.14520983,3197.6,3194.7,3.90649865]
[1768329692063,0.14520983,3197.2,3194.7,0.15658]
[1768329692267,0.14520983,3197.2,3194.8,0.1410895]
[1768329692766,0.00469417,3196.3,3194.8,0.1410895]
[1768329692969,0.00730561,3196.3,3194.8,0.14388799]
[1768329694261,0.15251544,3196.3,3194.8,0.00279849]
[1768329698579,0.15251544,3196.3,3194.5,0.15659]
[1768329698580,0.14496232,3196.2,3194.5,0.15659]
[1768329698970,0.14496232,3196.1,3193.9,0.14063691]
[1768329699574,0.14496232,3196.0,3193.9,0.29971627]
[1768329700360,1.73202793,3195.8,3193.9,0.29971627]
[1768329700565,0.14496232,3195.7,3193.9,0.29971627]
[1768329700768,0.14496232,3195.5,3193.9,0.29971627]
[1768329701976,0.14496232,3195.5,3193.9,0.15907936]
[1768329702373,1.458,3195.6,3194.2,0.14063691]
[1768329702574,1.458,3195.6,3194.2,0.29724691]
[1768329704077,1.60296232,3195.6,3194.2,0.15661]
[1768329704372,0.14496232,3195.5,3194.2,0.15661]
[1768329705179,0.14496232,3195.5,3193.9,0.00245936]
[1768329711576,0.14496232,3195.5,3193.2,0.15666]
[1768329711577,0.14496232,3195.1,3193.2,0.15666]